bitfinex/quotes_ETHUSD_20241124
["timestamp","ask_amount","ask_price","bid_price","bid_amount"]
[1732428733763,0.03672004,3405.0,3404.2,0.754]
[1732428733995,0.03671733,3405.2,3404.2,0.754]
[1732428735063,0.03671776,3405.1,3404.2,0.754]
[1732428735371,0.792,3404.9,3404.2,0.754]
[1732428735534,0.03672051,3404.8,3404.2,0.754]
[1732428737881,0.03672062,3404.9,3404.2,0.754]
[1732428738175,0.03672062,3404.7,3404.2,0.754]
[1732428738741,0.792,3404.6,3403.0,0.8246]
[1732428738999,0.03672371,3404.5,3403.1,0.8246]
[1732428739631,3.0,3404.3,3403.1,0.8246]
[1732428739886,0.03673006,3404.2,3403.1,0.8246]
[1732428740793,0.03214256,3404.2,3403.1,0.8246]
[1732428741293,2.99808555,3403.9,3403.1,0.8246]
[1732428741472,0.03027816,3403.8,3403.1,0.8246]
[1732428741797,0.58027816,3403.8,3403.1,0.8246]
[1732428742298,0.55,3403.8,3403.1,0.8246]
[1732428742994,0.58027816,3403.7,3403.1,0.8246]
[1732428744039,0.03027816,3403.7,3403.1,0.8246]
[1732428746009,0.55,3403.8,3403.1,0.8246]
[1732428746768,0.03027816,3403.9,3403.1,0.8246]
[1732428747874,2.25194368,3404.4,3403.1,0.8246]
[1732428748170,2.28222184,3404.4,3403.1,0.8246]
[1732428749121,0.03027816,3404.4,3403.1,0.8246]
[1732428749403,0.03027816,3404.7,3403.3,0.8289]
[1732428750273,0.03027816,3404.7,3403.3,0.85828035]
[1732428750469,0.03027816,3404.7,3402.8,3.0]
[1732428750470,2.25194368,3405.2,3403.5,0.8289]
[1732428750773,2.25194368,3405.2,3403.4,0.02937888]
[1732428750774,0.03027816,3405.1,3403.7,0.8289]
[1732428750973,0.33380034,3405.1,3403.7,0.8289]
[1732428751921,0.55,3405.0,3403.7,0.8289]
[1732428752096,0.03027816,3404.9,3403.7,0.8289]
[1732428752416,0.34385256,3404.9,3403.7,0.8289]
[1732428753380,0.03027816,3404.9,3403.7,0.8289]
[1732428753603,0.03027816,3404.8,3403.7,0.8289]
[1732428753806,2.28222184,3405.2,3403.8,0.02937723]
[1732428753978,2.25194368,3405.2,3403.9,0.8289]
[1732428754180,0.03027816,3405.1,3403.9,0.8289]
[1732428756010,2.25194368,3405.2,3403.9,0.8289]
[1732428756610,0.55,3405.4,3404.0,0.79377488]
[1732428757498,2.25194368,3405.6,3404.0,0.79377488]
[1732428757702,0.03486566,3405.5,3404.0,0.79377488]
[1732428758097,2.25194368,3405.6,3404.0,0.79377488]
[1732428758698,0.55,3405.8,3404.1,0.7644]
[1732428758904,0.55,3405.8,3404.2,0.7644]
[1732428758905,0.55,3405.1,3404.2,0.7644]
[1732428759089,0.03486566,3405.0,3404.2,0.7644]
[1732428760105,0.55,3404.9,3404.2,0.7644]
[1732428760280,0.03486566,3404.8,3404.2,0.7644]
[1732428765623,0.767,3405.0,3404.2,0.7644]
[1732428765624,0.03486566,3405.1,3404.2,0.7644]
[1732428768364,0.03486566,3405.4,3404.2,0.7644]
[1732428771069,0.55,3405.3,3404.2,0.7644]
[1732428771276,0.03486566,3405.2,3404.2,0.7644]
[1732428772236,2.28680934,3405.2,3404.2,0.7644]
[1732428780922,0.55,3405.3,3404.2,0.7644]
[1732428780923,0.03486566,3405.3,3404.2,0.7644]
[1732428781586,0.03486566,3405.5,3404.2,0.7644]
[1732428781805,0.26006003,3405.5,3404.2,0.7644]
[1732428782138,2.25194368,3406.0,3404.4,0.8304]
[1732428782341,0.03486566,3405.9,3404.5,0.8304]
[1732428782502,0.26354659,3405.9,3404.5,0.8304]
[1732428783030,2.25194368,3406.0,3404.7,0.8304]
[1732428783341,2.25194368,3406.0,3404.9,0.8304]
[1732428784125,0.03486566,3405.9,3404.9,0.8304]
[1732428784527,2.25194368,3406.0,3404.9,0.8304]
[1732428784731,0.55,3406.3,3405.0,0.02936711]
[1732428784934,0.03486566,3406.2,3405.1,0.8304]
[1732428785114,0.03486566,3406.4,3405.1,0.8304]
[1732428785317,0.03486566,3406.6,3405.1,0.8304]
[1732428785644,0.37182172,3406.6,3405.1,0.8304]
[1732428785998,0.37182172,3406.6,3405.2,0.8304]
[1732428786204,0.03486566,3406.6,3405.2,0.8304]
[1732428786438,2.28680934,3406.8,3405.2,0.8304]
[1732428787828,2.25194368,3406.8,3405.3,0.85976138]
[1732428788212,0.03486566,3406.7,3405.3,0.8304]
[1732428790672,2.25194368,3406.4,3405.3,0.8304]
[1732428790879,0.03486566,3406.3,3405.3,0.8304]
[1732428792277,0.03486566,3406.6,3405.3,0.8304]
[1732428793392,0.26354659,3406.6,3405.3,0.8304]
[1732428795489,0.03486566,3406.6,3405.3,0.8304]
[1732428795794,0.03486566,3406.7,3405.3,0.8304]
[1732428796090,0.03486566,3406.7,3405.3,0.77214629]
[1732428797491,0.55,3407.0,3405.4,0.02936083]
[1732428797656,0.03486566,3407.0,3405.4,0.02936083]
[1732428797850,2.25194368,3407.2,3405.4,0.02936083]
[1732428797851,2.28680934,3407.2,3405.4,0.02936083]
[1732428798287,2.28680934,3407.2,3405.3,0.02935659]
[1732428798451,0.8062,3407.0,3405.4,0.22813003]
[1732428798655,2.25194368,3406.8,3405.1,0.0293566]
[1732428798849,0.03486566,3406.7,3405.2,0.8013]
[1732428799053,2.25194368,3406.8,3405.2,0.8013]
[1732428800585,2.25194368,3406.8,3405.3,0.7508]
[1732428800894,2.25194368,3406.8,3405.3,0.74548523]
[1732428801273,0.27251997,3406.7,3405.3,0.74548523]
[1732428801471,0.27251997,3406.6,3405.3,0.74548523]
[1732428801673,0.27251997,3406.7,3405.3,0.74548523]
[1732428801867,0.2725421,3406.6,3405.3,0.74548523]
[1732428802067,2.25194368,3406.8,3405.3,0.74548523]
[1732428802273,0.27254364,3406.7,3405.3,0.74548523]
[1732428802508,2.25194368,3406.8,3405.3,0.74548523]
[1732428802663,0.27256881,3406.7,3405.3,0.74548523]
[1732428802860,3.55,3407.1,3405.4,0.02936092]
[1732428803061,0.27255734,3407.0,3405.4,0.02936092]
[1732428803299,0.27255734,3406.9,3405.4,0.32176092]
[1732428803597,2.25194368,3407.2,3405.4,0.32176092]
[1732428803598,2.25194368,3407.2,3405.4,0.2924]
[1732428803901,3.49780558,3407.1,3405.6,0.7508]
[1732428804072,0.27261121,3407.0,3405.6,0.7508]
[1732428804397,0.27261121,3406.9,3405.6,0.7508]
[1732428804564,2.52455489,3406.8,3405.8,0.7508]
[1732428804760,0.27261121,3406.7,3405.8,0.7508]
[1732428805363,0.27272957,3406.6,3405.8,0.7508]
[1732428805605,0.27272957,3406.5,3405.8,0.7508]
[1732428806298,5.25194368,3406.4,3405.8,0.7508]
[1732428806500,0.27272957,3406.3,3405.8,0.7508]
[1732428806861,2.25194368,3406.4,3405.8,0.7508]
[1732428807203,0.49812318,3406.3,3405.8,0.7508]
[1732428807407,0.22519437,3406.3,3405.8,0.7508]
[1732428807773,0.27294682,3406.2,3405.8,0.7508]
[1732428807981,0.22519437,3406.3,3405.8,0.7508]
[1732428808185,0.27293943,3406.2,3405.8,0.7508]
[1732428808508,2.25194368,3406.0,3404.4,1.0432]
[1732428808692,0.27293943,3405.9,3404.5,0.7508]
[1732428808867,2.25194368,3405.6,3404.5,0.7508]
[1732428810512,2.25194368,3405.6,3404.5,0.6308]
[1732428810889,2.25194368,3405.6,3404.0,0.029368]
[1732428811272,2.25194368,3405.6,3403.9,3.0]
[1732428811273,1.02749065,3405.5,3403.3,2.25194368]
[1732428811471,2.25194368,3405.2,3403.4,0.02937288]
[1732428811703,0.27319065,3405.1,3403.4,0.02937288]
[1732428812377,2.25194368,3405.2,3403.4,0.02937288]
[1732428812578,2.25194368,3405.6,3403.7,0.02937429]
[1732428812885,0.57379467,3405.5,3403.7,0.02937429]
[1732428813085,0.2731703,3405.4,3403.4,3.029373]
[1732428813316,0.2731703,3405.3,3403.4,3.029373]
[1732428813498,0.2713003,3405.2,3403.5,0.55737167]
[1732428813699,0.25525681,3405.4,3403.6,0.57937274]
[1732428814021,0.25525681,3405.4,3403.8,0.7508]
[1732428814180,0.25525681,3405.4,3403.8,0.78017274]
[1732428819524,0.25525681,3405.4,3403.8,0.7508]
[1732428822356,2.25194368,3405.0,3403.8,0.7508]
[1732428828204,5.25194368,3405.4,3403.8,0.7508]
[1732428828546,3.27254949,3405.3,3403.8,0.7508]
[1732428828842,2.25194368,3405.4,3403.8,0.7508]
[1732428829148,3.30316437,3405.3,3403.8,0.7508]
[1732428830650,0.30316437,3405.3,3403.8,0.7508]
[1732428830855,2.25194368,3405.4,3403.8,0.7508]
[1732428832015,2.25194368,3405.8,3403.9,0.80027287]
[1732428832325,3.27283207,3405.7,3403.9,0.80027287]
[1732428832534,0.27283207,3405.6,3403.9,0.80027287]
[1732428833556,2.25194368,3405.4,3403.9,0.80027287]
[1732428833728,0.27283207,3405.3,3403.9,0.80027287]
[1732428833923,2.25194368,3405.4,3403.9,0.80027287]
[1732428834120,2.47713805,3405.4,3403.9,0.80027287]
[1732428834458,0.27316134,3405.3,3403.9,0.80027287]
[1732428834626,2.47713805,3405.4,3403.9,0.80027287]
[1732428834826,0.27317562,3405.3,3403.9,0.80027287]
[1732428835170,2.47713805,3405.4,3403.9,0.80027287]
[1732428835328,0.2731933,3405.3,3403.9,0.80027287]
[1732428835665,2.47713805,3405.4,3404.0,0.8154]
[1732428835956,3.0,3405.9,3403.9,0.02937287]
[1732428835957,2.25194368,3405.8,3404.2,0.8154]
[1732428836253,3.27329567,3405.7,3404.2,0.8154]
[1732428836457,0.27329567,3405.6,3404.2,0.8154]
[1732428836623,0.27329567,3405.6,3404.3,0.02936892]
[1732428836831,0.27329567,3405.6,3404.4,0.8154]
[1732428837012,0.27329567,3405.6,3403.9,3.0]
[1732428837013,0.27329567,3405.5,3404.6,0.8154]
[1732428837214,5.25194368,3406.2,3404.6,0.8154]
[1732428837446,3.27353027,3406.1,3404.6,0.8154]
[1732428837711,0.2735304,3406.0,3404.6,0.8154]
[1732428837941,2.25194368,3406.2,3404.7,0.84476891]
[1732428838127,2.25194368,3406.2,3404.7,0.8154]
[1732428838345,0.22519437,3406.1,3404.7,0.8154]
[1732428839154,2.25194368,3405.8,3404.7,0.8154]
[1732428845268,3.05504368,3406.2,3404.7,0.8154]
[1732428845436,3.05504368,3406.2,3404.9,0.7658]
[1732428845437,2.55744805,3406.2,3404.9,0.7658]
[1732428845675,2.25194368,3406.2,3404.9,0.7658]
[1732428848154,2.25194368,3405.8,3404.9,0.7658]
[1732428849794,0.27331605,3405.7,3404.9,0.7658]
[1732428850003,2.25194368,3405.8,3404.9,0.7658]
[1732428850155,0.27329144,3405.7,3404.9,0.7658]
[1732428850365,2.25194368,3405.8,3404.9,0.7658]
[1732428850579,0.27323651,3405.7,3404.9,0.7658]
[1732428850757,2.25194368,3405.8,3404.9,0.7658]
[1732428851163,0.27322696,3405.7,3404.9,0.7658]
[1732428851405,2.25194368,3405.8,3404.9,0.7658]
[1732428851565,0.27323523,3405.7,3404.9,0.7658]
[1732428851905,2.25194368,3405.8,3404.9,0.7658]
[1732428852093,0.27324514,3405.7,3404.9,0.7658]
[1732428852294,2.25194368,3405.8,3404.9,0.7658]
[1732428852496,0.27324959,3405.7,3404.9,0.7658]
[1732428852667,0.27324959,3405.6,3404.9,0.7658]
[1732428852869,0.27324959,3405.5,3404.9,0.7658]
[1732428853124,2.47713805,3405.8,3404.9,0.7658]
[1732428853305,0.60125825,3405.7,3404.9,0.7658]
[1732428853506,0.27323444,3405.6,3404.9,0.7658]
[1732428854636,0.27327089,3405.5,3404.9,0.7658]
[1732428854923,0.32802381,3405.7,3404.9,0.7658]
[1732428855220,0.53128714,3405.6,3404.9,0.7658]
[1732428855513,0.27329039,3405.5,3404.9,0.7658]
[1732428857979,0.25799675,3405.6,3404.9,0.7658]
[1732428858182,0.27345621,3405.5,3404.9,0.7658]
[1732428858436,0.27349914,3405.4,3404.9,0.7658]
[1732428858599,0.27349914,3405.3,3404.9,0.7658]
[1732428858926,0.25799675,3405.6,3404.9,0.7658]
[1732428859081,0.2734939,3405.5,3404.9,0.7658]
[1732428859281,0.25799675,3405.6,3404.9,0.7658]
[1732428859282,0.2734939,3405.4,3404.9,0.7658]
[1732428859529,0.2734939,3405.3,3404.9,0.7658]
[1732428859694,0.2734939,3405.4,3404.9,0.7658]
[1732428859903,0.27353065,3405.3,3405.1,0.00771103]
[1732428860205,0.27834343,3405.5,3405.1,0.00771103]
[1732428860411,0.27356588,3405.4,3405.1,0.00771103]
[1732428860613,0.27356588,3405.3,3405.1,0.00771103]
[1732428860816,2.25194368,3405.8,3405.1,0.00771103]
[1732428861020,0.27356747,3405.7,3405.1,0.00771103]
[1732428861211,0.27356747,3405.6,3405.1,0.00771103]
[1732428861533,2.25194368,3405.8,3405.1,0.00771103]
[1732428861682,2.25194368,3405.4,3405.1,0.00771103]
[1732428861884,0.27359301,3405.3,3405.1,0.00771103]
[1732428862127,2.25194368,3405.4,3405.1,0.00771103]
[1732428862128,0.27359301,3405.2,3405.1,0.00771103]
[1732428862798,2.25194368,3405.4,3405.1,0.00771103]
[1732428863000,0.2735929,3405.3,3405.2,0.7736]
[1732428863722,2.25194368,3405.8,3405.2,0.7736]
[1732428863933,0.27357594,3405.7,3405.2,0.7736]
[1732428864151,0.27357594,3405.6,3405.2,0.7736]
[1732428864346,0.27357594,3405.5,3405.2,0.7736]
[1732428864585,0.27357594,3405.4,3405.2,0.7736]
[1732428864747,0.49877031,3405.7,3405.2,0.7736]
[1732428864937,0.27357594,3405.6,3405.2,0.7736]
[1732428865142,0.27357594,3405.5,3405.2,0.7736]
[1732428865391,0.27357594,3405.4,3405.2,0.7736]
[1732428865681,0.27357594,3405.3,3405.2,0.7736]
[1732428866185,2.25194368,3405.8,3405.2,0.7736]
[1732428866186,0.27357594,3405.5,3405.2,0.7736]
[1732428866482,0.27357594,3405.4,3405.2,0.7736]
[1732428866640,0.27357594,3405.7,3405.2,0.7736]
[1732428866846,0.27357594,3405.6,3405.2,0.7736]
[1732428867184,0.27357594,3405.5,3405.2,0.7736]
[1732428867379,0.27357594,3405.4,3405.2,0.7736]
[1732428867589,0.27357594,3405.3,3405.2,0.7736]
[1732428867742,0.27357594,3405.7,3405.2,0.7736]
[1732428867944,0.27357594,3405.6,3405.2,0.7736]
[1732428868175,0.27357594,3405.5,3405.2,0.7736]
[1732428868374,0.27357594,3405.4,3405.2,0.7736]
[1732428868689,2.25194368,3405.8,3405.2,0.7736]
[1732428868883,0.2736162,3405.7,3405.2,0.7736]
[1732428869057,0.27361639,3405.6,3405.2,0.7736]
[1732428871162,2.47713805,3406.2,3405.2,0.7736]
[1732428871360,0.27359007,3406.1,3405.2,0.7736]
[1732428871699,2.25194368,3405.9,3405.2,0.7736]
[1732428871995,0.27359007,3405.8,3405.2,0.7736]
[1732428872157,2.25194368,3405.9,3405.2,0.7736]
[1732428872489,0.27357565,3405.8,3405.2,0.7736]
[1732428872689,2.25194368,3405.9,3405.2,0.7736]
[1732428872690,0.27357565,3405.7,3405.2,0.7736]
[1732428872846,0.27357565,3405.6,3405.2,0.7736]
[1732428873045,0.27357565,3405.5,3405.2,0.7736]
[1732428873286,0.30621437,3405.8,3405.2,0.7736]
[1732428873461,0.52939506,3405.7,3405.2,0.7736]
[1732428873658,0.27357925,3405.6,3405.2,0.7736]
[1732428873990,0.27357925,3405.5,3405.2,0.7736]
[1732428874189,0.27357925,3405.4,3405.2,0.7736]
[1732428874405,0.25581581,3405.7,3405.2,0.7736]
[1732428874603,0.27359023,3405.6,3405.2,0.7736]
[1732428874752,0.27359023,3405.5,3405.1,0.00771103]
[1732428875096,0.27359023,3405.4,3405.1,0.00771103]
[1732428875251,0.7578,3405.2,3405.1,0.00771103]
[1732428875447,1.58139023,3405.2,3405.1,0.00771103]
[1732428875964,1.58126777,3405.2,3405.1,0.00771103]
[1732428876472,3.83321145,3405.2,3405.1,0.00771103]
[1732428876684,6.83321145,3405.2,3405.1,0.00771103]
[1732428876988,7.16202713,3405.2,3405.1,0.00771103]
[1732428879244,6.61202713,3405.2,3405.1,0.00771103]
[1732428879456,6.33855936,3405.2,3405.1,0.00771103]
[1732428879655,5.85377251,3405.2,3405.1,0.00771103]
[1732428882407,2.52495683,3405.2,3405.1,0.00771103]
[1732428883415,2.52492851,3405.2,3405.1,0.00771103]
[1732428886905,2.25194368,3405.2,3405.1,0.00771103]
[1732428887145,2.52492901,3405.2,3405.1,0.00771103]
[1732428888754,2.52492901,3405.2,3405.1,0.76571103]
[1732428889445,3.0,3405.5,3405.1,0.76571103]
[1732428889621,0.27301039,3405.4,3405.1,0.76571103]
[1732428889809,2.25194368,3405.6,3405.1,0.76571103]
[1732428890010,3.2730125,3405.5,3405.1,0.76571103]
[1732428890241,0.2730125,3405.4,3405.1,0.76571103]
[1732428890559,0.27303289,3405.3,3405.1,0.76571103]
[1732428890703,0.27303289,3405.2,3405.1,0.76571103]
[1732428891255,2.47713805,3405.6,3405.1,0.76571103]
[1732428891412,0.27305538,3405.5,3405.1,0.76571103]
[1732428891615,2.47713805,3405.6,3405.1,0.76571103]
[1732428891946,0.27305755,3405.5,3405.1,0.76571103]
[1732428892249,0.27305242,3405.4,3405.1,0.76571103]
[1732428892411,2.47713805,3405.6,3405.1,0.76571103]
[1732428892615,0.27306719,3405.5,3405.1,0.76571103]
[1732428892810,0.27306719,3405.4,3405.1,0.76571103]
[1732428893146,2.47713805,3405.6,3405.1,0.76571103]
[1732428893321,0.27308206,3405.5,3405.1,0.76571103]
[1732428893522,0.27308206,3405.4,3405.1,0.76571103]
[1732428893719,2.47713805,3405.6,3405.1,0.76571103]
[1732428893935,0.27310868,3405.5,3405.1,0.76571103]
[1732428894126,0.27310868,3405.4,3405.1,0.76571103]
[1732428894448,2.25194368,3405.6,3405.1,0.76571103]
[1732428894662,0.27311455,3405.5,3405.1,0.76571103]
[1732428894871,2.25194368,3405.6,3405.1,0.76571103]
[1732428895076,3.27312261,3405.5,3405.1,0.76571103]
[1732428895365,2.25194368,3405.6,3405.1,0.76571103]
[1732428895552,0.27312641,3405.5,3405.1,0.76571103]
[1732428895772,2.25194368,3405.6,3405.1,0.76571103]
[1732428895959,0.27312412,3405.5,3405.1,0.76571103]
[1732428896144,2.25194368,3405.6,3405.1,0.76571103]
[1732428896471,0.27312784,3405.5,3405.1,0.76571103]
[1732428896680,2.25194368,3405.6,3405.1,0.76571103]
[1732428896822,2.25194368,3406.0,3405.1,0.76571103]
[1732428897034,0.27314166,3405.9,3405.1,0.76571103]
[1732428897376,0.27314166,3405.8,3405.1,0.76571103]
[1732428897679,2.25194368,3406.0,3405.1,0.76571103]
[1732428897849,0.27313194,3405.9,3405.1,0.76571103]
[1732428898054,2.25194368,3406.0,3405.1,0.76571103]
[1732428898365,0.27312606,3405.9,3405.1,0.76571103]
[1732428898569,2.25194368,3406.0,3405.1,0.76571103]
[1732428898765,0.27308855,3405.9,3405.1,0.76571103]
[1732428898977,2.25194368,3406.0,3405.1,0.76571103]
[1732428899179,0.27308723,3405.9,3405.1,0.76571103]
[1732428899346,2.25194368,3406.0,3405.1,0.76571103]
[1732428899675,0.2730613,3405.9,3405.1,0.76571103]
[1732428899874,0.2730613,3405.8,3405.1,0.76571103]
[1732428900054,2.25194368,3406.0,3405.1,0.76571103]
[1732428900364,0.27305118,3405.9,3405.1,0.76571103]
[1732428900575,2.25194368,3406.0,3405.1,0.76571103]
[1732428900743,0.27307861,3405.9,3405.1,0.76571103]
[1732428900945,2.25194368,3406.0,3405.1,0.76571103]
[1732428901146,0.27308351,3405.9,3405.1,0.76571103]
[1732428901343,0.27308351,3405.8,3405.1,0.76571103]
[1732428901546,2.25194368,3406.0,3405.1,0.76571103]
[1732428901755,0.27311377,3405.9,3405.1,0.76571103]
[1732428901958,2.25194368,3406.0,3405.1,0.76571103]
[1732428902199,0.27308953,3405.9,3405.1,0.76571103]
[1732428902370,2.47713805,3406.0,3405.1,0.76571103]
[1732428904202,2.25194368,3405.2,3405.1,0.76571103]
[1732428904411,2.25194368,3405.2,3405.1,0.00771103]
[1732428904780,2.524986,3405.2,3405.1,0.00771103]
[1732428905091,2.8561946,3405.2,3405.1,0.00771103]
[1732428905665,3.6432946,3405.2,3405.1,0.00771103]
[1732428905879,6.6432946,3405.2,3405.1,0.00771103]
[1732428915033,6.64316335,3405.2,3405.1,0.00771103]
[1732428915628,7.19316335,3405.2,3405.1,0.00771103]
[1732428916134,7.78184103,3405.2,3405.1,0.00771103]
[1732428917145,7.50892996,3405.2,3405.1,0.00771103]
[1732428917343,7.78172425,3405.2,3405.1,0.00771103]
[1732428921454,6.64304657,3405.2,3405.1,0.00771103]
[1732428922159,5.85594657,3405.2,3405.1,0.00771103]
[1732428922476,5.8556962,3405.2,3405.1,0.00771103]
[1732428925980,5.85575924,3405.2,3405.1,0.00771103]
[1732428926781,3.0,3405.1,3403.9,0.793]
[1732428926986,2.25194368,3404.4,3403.9,0.793]
[1732428928363,0.27264763,3404.3,3403.9,0.793]
[1732428928568,2.25194368,3404.4,3403.9,0.793]
[1732428928872,0.27264955,3404.3,3403.9,0.793]
[1732428929080,2.55504805,3404.4,3403.9,0.793]
[1732428929276,0.27264061,3404.3,3403.9,0.793]
[1732428929478,2.55504805,3404.4,3403.9,0.793]
[1732428929774,0.2726886,3404.3,3403.9,0.793]
[1732428930095,2.25194368,3404.0,3403.9,0.793]
[1732428930909,2.25194368,3404.0,3402.8,0.793]
[1732428931117,3.03104368,3404.0,3402.8,0.793]
[1732428931310,2.25194368,3403.6,3402.8,0.793]
[1732428931898,2.25194368,3403.2,3402.8,0.793]
[1732428934582,2.25194368,3403.5,3402.8,0.793]
[1732428936613,2.35194368,3404.8,3402.8,0.793]
[1732428936614,2.25194368,3403.8,3402.8,0.793]
[1732428936826,2.25194368,3404.1,3402.8,0.793]
[1732428937118,0.27255494,3404.0,3402.8,0.793]
[1732428939015,2.25194368,3403.7,3402.8,0.793]
[1732428945824,2.47713805,3403.7,3402.8,0.793]
[1732428946613,2.25194368,3403.7,3402.8,0.793]
[1732428946808,2.25194368,3404.1,3402.2,0.7698]
[1732428947008,2.25194368,3404.5,3402.5,0.2927]
[1732428947241,0.27293136,3404.4,3402.7,0.55]
[1732428947537,2.25194368,3404.5,3403.1,0.7698]
[1732428947746,2.25194368,3404.5,3403.2,0.57937692]
[1732428948035,2.25194368,3404.5,3403.3,0.7698]
[1732428948402,2.25194353,3404.5,3403.3,0.7698]
[1732428948601,2.25194368,3404.1,3403.3,0.7698]
[1732428949639,2.25194357,3404.1,3403.3,0.7698]
[1732428950235,2.25194368,3403.8,3403.3,0.7698]
[1732428950639,2.25194368,3403.8,3403.4,0.2927]
[1732428950947,2.25194368,3403.8,3403.3,0.7698]
[1732428952331,2.25194368,3403.4,3402.1,0.7698]
[1732428953259,2.22023023,3403.0,3402.1,0.7698]
[1732428955955,2.25194368,3402.7,3402.1,0.7698]
[1732428956109,2.25194368,3402.4,3402.1,0.7698]
[1732428956504,1.82548624,3402.4,3402.1,0.7698]
[1732428958623,0.8313,3403.5,3402.1,0.7698]
[1732428958832,2.25194368,3402.7,3402.1,0.7698]
[1732428959346,0.22519437,3402.6,3402.1,0.7698]
[1732428960215,2.25194368,3402.7,3402.1,0.7698]
[1732428962553,2.25194368,3402.4,3401.1,0.8025]
[1732428962730,2.25194368,3402.1,3401.1,0.8025]
[1732428963455,0.7843,3402.6,3401.1,0.8025]
[1732428963456,2.25194368,3402.4,3401.1,0.8025]
[1732428964312,2.25194368,3402.1,3401.1,0.8025]
[1732428964825,2.25194368,3401.8,3401.1,0.8025]
[1732428966036,2.25194368,3402.4,3401.1,0.8025]
[1732428966720,3.03624368,3402.7,3401.3,0.8025]
[1732428966931,2.25194368,3403.0,3401.5,0.8025]
[1732428967141,2.25194368,3403.3,3401.7,0.8025]
[1732428967345,2.25194368,3403.3,3401.2,2.25194368]
[1732428967346,2.25194368,3403.3,3401.8,0.02939215]
[1732428967669,2.25194368,3403.3,3401.9,0.8025]
[1732428967823,2.25194368,3403.3,3401.6,0.8025]
[1732428968018,2.25194368,3403.3,3401.8,0.8025]
[1732428968261,2.48346805,3403.3,3401.8,0.8025]
[1732428968423,2.48346777,3403.3,3401.8,0.8025]
[1732428969267,2.1798434,3403.3,3401.9,0.02939202]
[1732428969419,2.25194368,3403.6,3401.9,0.83189202]
[1732428969853,2.25194368,3403.9,3402.0,0.8025]
[1732428970006,2.25194368,3403.9,3402.2,0.8025]
[1732428970301,2.25194368,3403.9,3402.2,0.83188701]
[1732428971277,0.55,3403.8,3402.2,0.83188701]
[1732428971581,3.55,3403.8,3402.2,0.83188701]
[1732428971798,3.55,3403.8,3402.2,0.8025]
[1732428972993,2.25194368,3403.6,3402.2,0.8025]
[1732428973298,0.55,3403.5,3402.2,0.8025]
[1732428973676,0.55,3403.2,3402.2,0.8025]
[1732428973872,0.28019437,3403.1,3402.2,0.8025]
[1732428974397,0.55,3403.2,3402.2,0.8025]
[1732428974702,0.55,3402.9,3402.2,0.8025]
[1732428975593,0.757,3402.8,3401.1,0.7816]
[1732428975826,2.80194368,3402.7,3401.3,0.7816]
[1732428976700,3.55,3402.3,3401.3,0.7816]
[1732428977581,2.25194368,3402.1,3401.3,0.7816]
[1732428977929,0.55,3401.9,3401.3,0.7816]
[1732428980994,2.25194368,3402.1,3401.3,0.7816]
[1732428982404,3.55,3402.0,3401.3,0.7816]
[1732428983936,0.55,3401.6,3400.2,0.7733]
[1732428984091,0.28019437,3401.5,3400.2,0.7733]
[1732428986379,2.25194368,3401.3,3400.2,0.7733]
[1732428986584,2.25194368,3400.9,3400.2,0.7733]
[1732428990314,5.25194368,3400.9,3400.2,0.7733]
[1732428990513,2.25194368,3400.6,3400.2,0.7733]
[1732428990946,2.25194368,3400.6,3400.0,0.1486621]
[1732428992133,0.55,3400.5,3400.0,0.1486621]
[1732428994341,2.25194368,3400.6,3400.0,0.1486621]
[1732428995047,0.55,3400.5,3400.0,0.1486621]
[1732428995842,0.8217,3400.4,3400.0,0.1486621]
[1732428996312,2.25194368,3400.2,3400.0,0.1486621]
[1732428997122,3.55,3400.5,3400.0,0.1486621]
[1732428997556,3.0,3400.5,3400.0,0.1486621]
[1732428997866,2.25194368,3400.6,3400.0,0.1486621]
[1732428998067,2.25194368,3400.6,3400.1,0.8057]
[1732429002160,2.25194368,3401.0,3400.1,0.8057]
[1732429003567,2.25194352,3401.0,3400.1,0.8057]
[1732429004062,3.0,3401.3,3400.1,0.8057]
[1732429004275,2.25194368,3401.4,3400.1,0.8057]
[1732429005355,2.25194368,3401.0,3400.1,0.8057]
[1732429008454,3.04774368,3400.6,3400.0,0.1486621]
[1732429009732,2.25194368,3400.6,3400.0,0.1486621]
[1732429010256,2.25194368,3400.6,3400.1,0.8311]
[1732429012336,5.25194368,3401.0,3400.1,0.8311]
[1732429015307,0.27350703,3400.9,3400.1,0.8311]
[1732429015504,5.25194368,3401.0,3400.1,0.8311]
[1732429015738,0.27350612,3400.9,3400.1,0.8311]
[1732429016060,2.25194368,3400.6,3400.1,0.8311]
[1732429016408,2.25194368,3400.6,3400.0,0.1486621]
[1732429017612,0.8235888,3400.5,3400.0,0.1486621]
[1732429017950,2.25194368,3400.2,3400.0,0.1486621]
[1732429022150,3.0,3400.4,3400.0,0.1486621]
[1732429022352,5.25194368,3400.6,3400.0,0.1486621]
[1732429022568,3.27337859,3400.5,3400.0,0.1486621]
[1732429022762,5.25194368,3400.6,3400.0,0.1486621]
[1732429022955,3.27338098,3400.5,3400.0,0.1486621]
[1732429023341,0.2733694,3400.4,3400.0,0.1486621]
[1732429023549,5.25194368,3400.6,3400.0,0.1486621]
[1732429023550,2.25194368,3400.6,3400.1,0.7966]
[1732429023859,2.25194368,3400.6,3400.2,0.00225789]
[1732429023860,2.47713805,3400.6,3400.2,0.00225789]
[1732429025471,0.7667,3400.2,3396.7,0.7966]
[1732429025781,0.7667,3400.2,3394.3,44.35]
[1732429025782,0.55,3398.4,3397.2,0.7966]
[1732429026091,2.25194368,3398.1,3397.2,0.7966]
[1732429026248,3.03679714,3398.0,3397.2,0.7966]
[1732429026457,0.55,3397.9,3397.2,0.7966]
[1732429026759,0.55,3397.7,3397.2,0.7966]
[1732429026966,0.03680004,3397.6,3396.7,0.7966]
[1732429027179,2.25194368,3397.3,3396.7,0.7966]
[1732429027627,0.03680082,3397.2,3396.7,0.7966]
[1732429027831,2.25194368,3397.3,3396.7,0.7966]
[1732429028031,0.03680039,3397.2,3396.7,0.7966]
[1732429028970,2.25194368,3397.7,3396.7,0.7966]
[1732429029481,0.03679531,3397.6,3396.7,0.7966]
[1732429029998,2.25194368,3397.3,3396.7,0.7966]
[1732429032101,0.03679531,3397.6,3396.7,0.7966]
[1732429034423,2.25194368,3397.3,3396.7,0.7966]
[1732429035713,0.03680185,3397.2,3396.7,0.7966]
[1732429036023,2.25194368,3397.3,3396.7,0.7966]